fUSD/lending_fUSD_20240526
["ID","MTS","AMOUNT","RATE_DAILY","PERIOD"]
[327959538,1716711040770,-255.471,0.00012999,2]
[327959539,1716711040782,-1308.18429658,0.00012999,2]
[327959545,1716711042657,-1620.87313189,0.00012999,2]
[327959546,1716711042669,-21021.27349107,0.00012999,2]
[327959547,1716711042711,-2996.33430895,0.00012999,2]
[327959548,1716711042927,-258.68858,0.00012999,2]
[327959549,1716711042986,-146703.09906109,0.00012999,2]
[327959550,1716711042996,-25737.237,0.00012999,2]
[327959551,1716711043005,-438388.97330854,0.00013,2]
[327959553,1716711043813,-730.07140233,0.00013,2]
[327959556,1716711043826,-652.62529538,0.00013,2]
[327959558,1716711043839,-185537.10000001,0.00013,2]
[327959561,1716711043852,-298.72,0.00013,2]
[327959566,1716711046342,-1681.41961036,0.00013,2]
[327959567,1716711046400,-993.06454,0.00013,2]
[327959568,1716711046458,-3230.612195,0.00013,2]
[327959569,1716711046470,-7612.51162442,0.00013,2]
[327959570,1716711046481,-6940.4888,0.00013,2]
[327959571,1716711046518,-1772.156,0.00013,2]
[327959572,1716711046627,-774.68725396,0.00013,2]
[327959573,1716711046639,-25855.48418701,0.00013,2]
[327959578,1716711197020,1033.74537,0.0003085,120]
[327959579,1716711363926,184.11,9.623e-05,2]
[327959580,1716711435251,617.77,9.962e-05,2]
[327959581,1716711854078,710.0,0.00012,4]
[327959583,1716711861596,-1400.0,0.00011508,3]
[327959585,1716711915190,184.11,8.849e-05,2]
[327959586,1716711985711,586.88,8.888e-05,2]
[327959609,1716712232859,-155.0,0.00010801,2]
[327959610,1716712232868,-155.0,0.00010802,2]
[327959611,1716712232877,-162.20302421,0.00010802,2]
[327959612,1716712232886,-155.0,0.00010802,2]
[327959613,1716712232895,-266.60822412,0.00010803,2]
[327959614,1716712232905,-344.8307424,0.00010804,2]
[327959615,1716712232915,-241.02044782,0.00010804,2]
[327959616,1716712232925,-4281.53119452,0.00010804,2]
[327959617,1716712232934,-155.0,0.00010805,2]
[327959618,1716712232943,-624.21897666,0.00010805,2]
[327959619,1716712232953,-180.95,0.00010806,2]
[327959620,1716712232962,-600.0,0.00010843,3]
[327959621,1716712232971,-150.0,0.00010919,2]
[327959622,1716712232980,-31.53739031,0.00010919,2]
[327959623,1716712232991,-655.43757677,0.00010919,2]
[327959624,1716712233001,-168.06827952,0.00010919,2]
[327959625,1716712233010,-505.77817144,0.00010919,2]
[327959626,1716712233021,-42840.0976723,0.00010919,2]
[327959627,1716712233030,-250.0,0.00010921,2]
[327959628,1716712233040,-1789.74382833,0.00010975,2]
[327959629,1716712233049,-958.79,0.00010977,2]
[327959630,1716712233059,-3011.67,0.00010995,2]
[327959631,1716712233070,-9999.99,0.00010995,2]
[327959632,1716712233079,-499.99,0.00010995,2]
[327959633,1716712233089,-299.99,0.00010995,2]
[327959634,1716712233098,-200.0,0.00010997,2]
[327959635,1716712233107,-856.24,0.00010997,2]
[327959636,1716712233116,-150.0,0.00011005,2]
[327959637,1716712233125,-160.36,0.00011015,2]
[327959638,1716712233135,-552.78,0.00011015,2]
[327959639,1716712233144,-3719.58569085,0.00011015,2]
[327959640,1716712233160,-7813.51430915,0.00011015,2]
[327959641,1716712233170,-242.22,0.00011015,2]
[327959642,1716712233179,-499.99,0.00011015,2]
[327959643,1716712233188,-2822.89738171,0.00011109,2]
[327959644,1716712233199,-875.52271808,0.00011109,2]
[327959645,1716712233210,-737.8305502,0.00011109,2]
[327959646,1716712233221,-791.63952452,0.00011109,2]
[327959647,1716712233233,-1299.4208445,0.00011109,2]
[327959648,1716712233244,-4165.00198084,0.00011109,2]
[327959649,1716712233255,-600.0,0.00011109,2]
[327959650,1716712233266,-1000.0,0.00011109,2]
[327959651,1716712233277,-275.36710089,0.00011109,2]
[327959652,1716712233288,-270.26587227,0.00011109,2]
[327959653,1716712233299,-6757.80347187,0.00011109,2]
[327959654,1716712233311,-368.36047548,0.00011109,2]
[327959655,1716712233327,-369.95948262,0.00011109,2]
[327959656,1716712233339,-467.5,0.00011109,2]
[327959657,1716712233349,-521.43,0.00011109,2]
[327959658,1716712233361,-397.82076205,0.00011109,2]
[327959659,1716712233380,-2179.17983497,0.00011109,2]
[327959660,1716712233389,-150.99,0.00011109,2]
[327959661,1716712233398,-969.83016503,0.00011124,2]
[327959662,1716712233430,-695.65983497,0.00011124,2]
[327959663,1716712233439,-451.29190503,0.00011152,2]
[327959664,1716712233483,-135.58809497,0.00011152,2]
[327959665,1716712233492,-9524.41190165,0.00011164,2]
[327959669,1716712237971,-455.32975798,0.00010844,2]
[327959670,1716712238054,-111.10024202,0.00010844,2]
[327959671,1716712238065,-2670.90809835,0.00011164,2]
[327959672,1716712238076,-287.16,0.00011439,2]
[327959673,1716712238086,-287.16,0.00011471,2]
[327959674,1716712238097,-287.16,0.00011502,2]
[327959675,1716712238106,-287.16,0.00011533,2]
[327959680,1716712238424,-287.16,0.00011565,2]
[327959681,1716712238454,-287.16,0.00011596,2]
[327959682,1716712238464,-287.16,0.00011627,2]
[327959683,1716712238474,-287.16,0.00011659,2]
[327959685,1716712238483,-287.16,0.0001169,2]
[327959687,1716712238492,-287.16,0.00011722,2]
[327959689,1716712238502,-167.15,0.0001173,2]
[327959690,1716712238511,-287.16,0.00011753,2]
[327959691,1716712238521,-287.16,0.00011784,2]
[327959692,1716712238533,-287.16,0.00011816,2]
[327959693,1716712238542,-487.52,0.00011823,2]
[327959694,1716712238552,-9999.99,0.00011823,2]
[327959695,1716712238561,-999.99,0.00011823,2]
[327959696,1716712238571,-287.16,0.00011847,2]
[327959697,1716712238583,-287.16,0.00011878,2]
[327959698,1716712238593,-2166.6333,0.00011905,2]
[327959699,1716712238603,-287.16,0.0001191,2]
[327959700,1716712238612,-287.16,0.00011941,2]
[327959701,1716712238620,-287.16,0.00011973,2]
[327959702,1716712238630,-287.16,0.00012004,2]
[327959703,1716712238639,-210.0,0.00012011,2]
[327959704,1716712238648,-287.16,0.00012035,2]
[327959705,1716712238658,-154.9,0.00012226,2]
[327959706,1716712238667,-856.24,0.00012372,2]
[327959707,1716712238677,-2604.67361667,0.00012642,2]
[327959708,1716712238687,-10005.4839,0.00012799,2]
[327959709,1716712238697,-800.1953,0.00012799,2]
[327959710,1716712238706,-14292.4608,0.00012799,2]
[327959711,1716712238716,-237.40951866,0.00012799,2]
[327959712,1716712238726,-330.24186281,0.00012799,2]
[327959713,1716712238735,-237.40951865,0.00012824,2]
[327959714,1716712238745,-237.40951865,0.0001285,2]
[327959715,1716712238755,-252.49288459,0.00012867,2]
[327959716,1716712238764,-237.40951865,0.00012875,2]
[327959717,1716712238778,-885.64062119,0.00012897,2]
[327959718,1716712238788,-254.93123399,0.00012898,2]
[327959719,1716712238798,-326.7328849,0.00012898,2]
[327959720,1716712238809,-100000.0,0.00012899,2]
[327959721,1716712238818,-1000.0,0.00012899,2]
[327959722,1716712238831,-211453.5339,0.00012899,2]
[327959723,1716712238842,-15976.5128,0.00012899,2]
[327959724,1716712238853,-162.86481413,0.000129,2]
[327959725,1716712238863,-2645.43617235,0.000129,2]
[327959726,1716712238873,-183.27059638,0.000129,2]
[327959727,1716712238883,-154.09227676,0.000129,2]
[327959728,1716712238892,-237.40951865,0.000129,2]
[327959729,1716712238902,-199.79942975,0.000129,2]
[327959730,1716712238911,-6323.78199228,0.000129,2]
[327959731,1716712238921,-8045.40502423,0.000129,2]
[327959732,1716712238930,-3837.1223796,0.00012988,2]
[327959733,1716712238940,-246.1267888,0.00012988,2]
[327959734,1716712238951,-564.42511793,0.00012988,2]
[327959735,1716712238961,-159.51,0.0001299,2]
[327959736,1716712238971,-159.51,0.0001299,2]
[327959737,1716712238981,-159.51,0.0001299,2]
[327959738,1716712238991,-159.51,0.0001299,2]
[327959739,1716712239000,-159.51,0.0001299,2]
[327959740,1716712239010,-159.51,0.0001299,2]
[327959741,1716712239020,-564.42511793,0.0001299,2]
[327959742,1716712239031,-564.42511793,0.0001299,2]
[327959743,1716712239040,-4340.0442082,0.00012991,2]
[327959744,1716712239051,-303.2064296,0.00012991,2]
[327959745,1716712239061,-1000.0,0.00012997,2]
[327959746,1716712239074,-1000.0,0.00012997,2]
[327959747,1716712239084,-1000.0,0.00012997,2]
[327959748,1716712239095,-1000.0,0.00012997,2]
[327959749,1716712239105,-1000.0,0.00012997,2]
[327959750,1716712239115,-1000.0,0.00012997,2]
[327959751,1716712239126,-1000.0,0.00012997,2]
[327959752,1716712239137,-1000.0,0.00012997,2]
[327959753,1716712239147,-1000.0,0.00012997,2]
[327959754,1716712239157,-1000.0,0.00012997,2]
[327959755,1716712239168,-1000.0,0.00012997,2]
[327959756,1716712239179,-2356.79859163,0.00012997,2]
[327959757,1716712239189,-789.86639451,0.00012997,2]
[327959758,1716712239200,-231.53054482,0.00012997,2]
[327959759,1716712239210,-1210.37915373,0.00012997,2]
[327959760,1716712239221,-525.01264179,0.00012997,2]
[327959761,1716712239231,-4212.63801329,0.00012997,2]
[327959762,1716712239242,-5456.75715038,0.00012997,2]
[327959763,1716712239251,-536.00152179,0.00012997,2]
[327959764,1716712239266,-179.28826561,0.00012997,2]
[327959765,1716712239276,-194.90807186,0.00012997,2]
[327959766,1716712239286,-155.13894279,0.00012997,2]
[327959767,1716712239296,-155.55768636,0.00012997,2]
[327959768,1716712239306,-327.5137528,0.00012997,2]
[327959769,1716712239316,-206.69058532,0.00012997,2]
[327959770,1716712239328,-206.3699626,0.00012997,2]
[327959771,1716712239338,-1064.33887229,0.00012997,2]
[327959772,1716712239348,-259.23567921,0.00012997,2]
[327959773,1716712239357,-159.76702591,0.00012997,2]
[327959774,1716712239367,-237.20973575,0.00012997,2]
[327959775,1716712239378,-323.68137164,0.00012997,2]
[327959776,1716712239388,-2222.04647422,0.00012997,2]
[327959777,1716712239401,-157.30591297,0.00012997,2]
[327959778,1716712239411,-155.6178769,0.00012997,2]
[327959779,1716712239421,-155.0,0.00012997,2]
[327959780,1716712239431,-156.40259508,0.00012997,2]
[327959781,1716712239441,-305.53903369,0.00012997,2]
[327959782,1716712239451,-392.86486179,0.00012997,2]
[327959783,1716712239462,-276.38529063,0.00012997,2]
[327959784,1716712239472,-155.84272343,0.00012997,2]
[327959785,1716712239482,-820.5593734,0.00012997,2]
[327959786,1716712239492,-23506.27137631,0.00012997,2]
[327959787,1716712239504,-155.48484738,0.00012997,2]
[327959788,1716712239514,-364.17738736,0.00012997,2]
[327959789,1716712239524,-684.0531349,0.00012997,2]
[327959790,1716712239535,-204.34387367,0.00012997,2]
[327959791,1716712239544,-255.20118883,0.00012997,2]
[327959792,1716712239555,-2185.42797665,0.00012997,2]
[327959793,1716712239565,-157.35021688,0.00012997,2]
[327959794,1716712239577,-159.44649709,0.00012997,2]
[327959795,1716712239588,-234.15716962,0.00012997,2]
[327959796,1716712239598,-166.82308813,0.00012997,2]
[327959797,1716712239608,-155.14868198,0.00012998,2]
[327959798,1716712239619,-3286.97999917,0.00012998,2]
[327959799,1716712239629,-1381.93423711,0.00012998,2]
[327959800,1716712239639,-711.54139824,0.00012998,2]
[327959801,1716712239649,-1273.20131825,0.00012998,2]
[327959802,1716712239659,-789.59156933,0.00012998,2]
[327959803,1716712239669,-208.81790596,0.00012998,2]
[327959804,1716712239680,-818.92777564,0.00012998,2]
[327959805,1716712239690,-205.03192926,0.00012998,2]
[327959806,1716712239700,-155.0,0.00012998,2]
[327959807,1716712239711,-782.34085719,0.00012998,2]
[327959808,1716712239721,-155.26323273,0.00012998,2]
[327959809,1716712239731,-155.0,0.00012999,2]
[327959810,1716712239740,-321.96055433,0.00012999,2]
[327959811,1716712239751,-155.2476176,0.00012999,2]
[327959813,1716712239762,-496547.59167872,0.00013,2]
[327959815,1716712239780,-253.67024202,0.00013,2]
[327959816,1716712239817,-207.68620458,0.00013,2]
[327959817,1716712239838,-1756.79999982,0.00013,2]
[327959818,1716712239852,-490.1733676,0.00013,2]
[327959819,1716712239874,-1651.32,0.00013,2]
[327959820,1716712239892,-2348.40046312,0.00013,2]
[327959821,1716712239905,-967.5007119,0.00013,2]
[327959822,1716712239918,-1135.53216571,0.00013,2]
[327959823,1716712239930,-450.89332225,0.00013,2]
[327959824,1716712239943,-272.32466048,0.00013,2]
[327959825,1716712239955,-324.95664198,0.00013,2]
[327959826,1716712239969,-2330.71214622,0.00013,2]
[327959827,1716712239995,-2153.71149061,0.00013,2]
[327959828,1716712240008,-5639.65239719,0.00013,2]
[327959843,1716712241498,-17372.93970558,0.00013,2]
[327959844,1716712241554,-1904.42319265,0.00013,2]
[327959851,1716712243155,-13952.88042967,0.00013,2]
[327959852,1716712243787,-499.89000018,0.00013,2]
[327959853,1716712243800,-4271.72022905,0.00013,2]
[327959855,1716712243815,-4875.60730398,0.00013,2]
[327959858,1716712243830,-634.42603761,0.00013,2]
[327959860,1716712243842,-2994.66198669,0.00013,2]
[327959866,1716712245999,-683.00938065,0.00012999,2]
[327959867,1716712246009,-662.81159391,0.00012999,2]
[327959868,1716712246019,-339.65293902,0.00012999,2]
[327959869,1716712246030,-100.47599694,0.00012999,2]
[327959870,1716712246040,-155.0,0.00012999,2]
[327959871,1716712246049,-155.65892591,0.00012999,2]
[327959872,1716712246059,-161.90949947,0.00012999,2]
[327959873,1716712246068,-283.16484192,0.00012999,2]
[327959874,1716712246094,-22.24965329,0.00012999,2]
[327959875,1716712246103,-2003.39107108,0.00013,2]
[327959876,1716712246115,-1346.7,0.00013,2]
[327959877,1716712246126,-324.95834368,0.00013,2]
[327959878,1716712246138,-587.02199997,0.00013,2]
[327959879,1716712246168,-541.36341189,0.00012998,2]
[327959880,1716712246178,-219.05658811,0.00013,2]
[327959881,1716712247055,-2725.03742778,0.00013,2]
[327959882,1716712247071,-1771.57523962,0.00013,2]
[327959964,1716712975122,528.19,9.791e-05,2]
[327959972,1716713315031,-155.0,0.00010659,2]
[327959973,1716713315221,-173.64356853,0.0001066,2]
[327959974,1716713315243,-150.0,0.00010662,2]
[327959975,1716713315264,-1521.35643147,0.00010663,2]
[327959976,1716713317203,-1399.53262864,0.00010663,2]
[327959977,1716713317223,-253.58312312,0.00010665,2]
[327959978,1716713317242,-346.88424824,0.00010681,2]
[327959998,1716713407690,-516.84870749,0.00010655,2]
[327959999,1716713407710,-208.8943473,0.00010656,2]
[327960000,1716713407731,-1274.25694521,0.00010681,2]
[327960001,1716713417059,-150.5,0.00019696,15]
[327960002,1716713417086,-150.5,0.00019696,15]
[327960003,1716713417112,-150.5,0.00019706,15]
[327960004,1716713417138,-150.5,0.00019706,15]
[327960005,1716713417163,-150.5,0.00019716,15]
[327960006,1716713417189,-150.5,0.00019716,15]
[327960019,1716713432219,-478.1956183,0.00010681,2]
[327960021,1716713432264,-388.10861956,0.00010681,2]
[327960022,1716713432276,-317.41730416,0.00010681,2]
[327960023,1716713432287,-1476.66845905,0.00010681,2]
[327960024,1716713432296,-24028.42910743,0.00010682,2]
[327960025,1716713432307,-440.52331929,0.00010682,2]
[327960026,1716713432320,-348.38,0.00010682,2]
[327960027,1716713432344,-4213.13153346,0.00010682,2]
[327960028,1716713432353,-4332.44499046,0.00011351,2]
[327960029,1716713432364,-6689.011,0.00011351,2]
[327960030,1716713432375,-2112.18078932,0.00011351,2]
[327960031,1716713432387,-9069.68526518,0.00011351,2]
[327960032,1716713432403,-1696.67795504,0.00011351,2]
[327960033,1716713432413,-376.94,0.00011377,2]
[327960034,1716713432422,-250.0,0.00011546,2]
[327960035,1716713432432,-4418.098521,0.00011546,2]
[327960036,1716713432449,-486.70279003,0.00011546,2]
[327960037,1716713432469,-1612.34868897,0.00011546,2]
[327960038,1716713432478,-499.99,0.00011546,2]
[327960039,1716713432488,-167.15,0.00011554,2]
[327960040,1716713432497,-150.99,0.00011554,2]
[327960041,1716713432506,-903.75,0.00011599,2]
[327960042,1716713432516,-164.57,0.00011603,2]
[327960043,1716713432525,-299.99,0.00011603,2]
[327960044,1716713432535,-150.0,0.00011604,2]
[327960045,1716713432544,-164.57,0.00011679,2]
[327960046,1716713432553,-193.6837,0.00011723,2]
[327960047,1716713432562,-748.65,0.00011723,2]
[327960048,1716713432572,-195.0,0.00011728,2]
[327960049,1716713432581,-250.0,0.00011749,2]
[327960050,1716713432590,-164.57,0.00011754,2]
[327960051,1716713432599,-164.57,0.0001183,2]
[327960052,1716713432608,-164.57,0.00011906,2]
[327960053,1716713432617,-164.57,0.00011981,2]
[327960054,1716713432627,-528.19,0.00012055,2]
[327960055,1716713432635,-164.57,0.00012057,2]
[327960056,1716713432645,-164.57,0.00012132,2]
[327960058,1716713432654,-164.57,0.00012208,2]
[327960059,1716713432663,-150.99,0.00012424,2]
[327960060,1716713432674,-193.31,0.00012669,2]
[327960062,1716713432683,-1598.82,0.00012669,2]
[327960064,1716713432693,-293.91,0.00012669,2]
[327960066,1716713432703,-1002.80185968,0.00012698,2]
[327960068,1716713432712,-663.00471014,0.00012698,2]
[327960070,1716713432721,-7046.0499,0.00012699,2]
[327960072,1716713432730,-1000.0,0.00012699,2]
[327960073,1716713432739,-174.2913,0.00012699,2]
[327960075,1716713432748,-14631.94984243,0.00012699,2]
[327960078,1716713432760,-12906.33775757,0.00012699,2]
[327960080,1716713432770,-215.84388429,0.00012797,2]
[327960082,1716713432779,-2903.49637621,0.00012797,2]
[327960084,1716713432790,-237.22996103,0.00012797,2]
[327960086,1716713432799,-321.43930767,0.00012797,2]
[327960088,1716713432808,-919.25286637,0.00012797,2]
[327960089,1716713432817,-447.02786322,0.00012797,2]
[327960090,1716713432828,-536.00152179,0.00012797,2]
[327960091,1716713432837,-10529.4669443,0.00012797,2]
[327960093,1716713432847,-290.18108048,0.00012797,2]
[327960095,1716713432858,-237.41199557,0.00012797,2]
[327960097,1716713432867,-834.74999327,0.00012797,2]
[327960099,1716713432877,-506.50863324,0.00012797,2]
[327960101,1716713432887,-155.24605476,0.00012797,2]
[327960119,1716713433054,-207.58824107,0.00012797,2]
[327960121,1716713433066,-306.53561288,0.00012797,2]
[327960123,1716713433077,-155.0,0.00012797,2]
[327960125,1716713433086,-364.49648891,0.00012797,2]
[327960127,1716713433096,-1245.97765168,0.00012797,2]
[327960129,1716713433105,-206.4857044,0.00012797,2]
[327960131,1716713433115,-253.63505572,0.00012797,2]
[327960133,1716713433124,-372.15163135,0.00012797,2]
[327960134,1716713433134,-516.40729963,0.00012797,2]
[327960136,1716713433143,-208.74146462,0.00012797,2]
[327960138,1716713433152,-35378.96571757,0.00012798,2]
[327960140,1716713433161,-77528.4003,0.00012799,2]
[327960141,1716713433170,-32817.96007036,0.00012799,2]
[327960143,1716713433186,-5141.00196918,0.00012799,2]
[327960149,1716713438193,-3060.43133549,0.00012799,2]
[327960150,1716713438206,-1000.0049591,0.00012799,2]
[327960151,1716713438248,-953.23988846,0.00012799,2]
[327960152,1716713438403,-33450.0,0.00012799,2]
[327960153,1716713438556,-15984.31967741,0.00012799,2]
[327960155,1716713438566,-343.74794017,0.00012869,2]
[327960157,1716713438576,-414.24782,0.0001287,2]
[327960159,1716713438586,-6754.5911,0.000129,2]
[327960161,1716713438596,-2616.11769886,0.000129,2]
[327960163,1716713438605,-330.2418628,0.000129,2]
[327960165,1716713438615,-2412.35241328,0.000129,2]
[327960167,1716713438624,-370.27139816,0.000129,2]
[327960169,1716713438633,-349.2926664,0.00012986,2]
[327960171,1716713438643,-3320.6382032,0.00012986,2]
[327960173,1716713438652,-425.9755815,0.00012989,2]
[327960174,1716713438661,-159.51,0.0001299,2]
[327960175,1716713438671,-69.81927954,0.0001299,2]
[327960176,1716713438682,-89.69072046,0.0001299,2]
[327960177,1716713438692,-159.51,0.0001299,2]
[327960178,1716713438701,-159.51,0.0001299,2]
[327960179,1716713438710,-159.51,0.0001299,2]
[327960180,1716713438720,-159.51,0.0001299,2]
[327960181,1716713438729,-159.51,0.0001299,2]
[327960182,1716713438738,-328.4837416,0.00012991,2]
[327960183,1716713438747,-133.77564683,0.00012991,2]
[327960190,1716713442088,-173.89916997,0.00012991,2]
[327960191,1716713442098,-3622.5440428,0.00012991,2]
[327960192,1716713442107,-3924.4498823,0.00012991,2]
[327960193,1716713442117,-464.7044365,0.00012991,2]
[327960194,1716713442126,-503.4332916,0.00012991,2]
[327960195,1716713442136,-301.47794749,0.00012998,2]
[327960196,1716713442146,-1495.05749469,0.00012998,2]
[327960197,1716713442155,-155.0,0.00012998,2]
[327960198,1716713442164,-182.34053557,0.00012998,2]
[327960199,1716713442174,-361.22735375,0.00012998,2]
[327960200,1716713442183,-406.15859567,0.00012998,2]
[327960201,1716713442192,-155.0,0.00012998,2]
[327960202,1716713442202,-523.62500017,0.00012998,2]
[327960203,1716713442211,-248.62293251,0.00012998,2]
[327960204,1716713442220,-241.7416219,0.00012999,2]
[327960205,1716713442230,-210.28539183,0.00012999,2]
[327960206,1716713442239,-204.71931777,0.00012999,2]
[327960207,1716713442249,-265.82841152,0.00012999,2]
[327960208,1716713442259,-7338.6283104,0.00012999,2]
[327960209,1716713442268,-208.33362284,0.00012999,2]
[327960210,1716713442278,-4830.17190507,0.00012999,2]
[327960211,1716713442287,-175305.44163472,0.00013,2]
[327960212,1716713442299,-479.63999999,0.00013,2]
[327960213,1716713442310,-362.495,0.00013,2]
[327960214,1716713442330,-1731.478,0.00013,2]
[327960215,1716713442342,-2748.91184999,0.00013,2]
[327960216,1716713442963,-1335.0,0.00013,2]
[327960233,1716713443842,-4110.4717641,0.00013,2]
[327960235,1716713443854,-4019.09127962,0.00013,2]
[327960236,1716713443868,-315.6,0.00013,2]
[327960237,1716713443880,-410.8163201,0.00013,2]
[327960238,1716713443894,-2335.78197615,0.00013,2]
[327960239,1716713443905,-4400.92490692,0.00013,2]
[327960241,1716713443916,-806.82144459,0.00013,2]
[327960243,1716713443928,-2082.4065,0.00013,2]
[327960244,1716713443940,-3349.57899105,0.00013,2]
[327960245,1716713443952,-6209.78952392,0.00013,2]
[327960268,1716713444426,-758.19771398,0.00013,2]
[327960269,1716713444439,-1231.95747819,0.00013,2]
[327960270,1716713444451,-3337.5,0.00013,2]
[327960272,1716713447264,-273.0491708,0.00012999,2]
[327960273,1716713447274,-11.8983367,0.00012999,2]
[327960274,1716713447312,-4273.66616983,0.00012999,2]
[327960275,1716713447321,-1682.85832014,0.00013,2]
[327960276,1716713447334,-13404.0,0.00013,2]
[327960277,1716713447346,-3530.16207123,0.00013,2]
[327960278,1716713447542,-985.01655896,0.00013,2]
[327960279,1716713447558,-482.79141065,0.00013,2]
[327960280,1716713447570,-1899.15,0.00013,2]
[327960281,1716713447602,-1604.0647606,0.00013,2]
[327960294,1716713671457,2412.7373498,9.75e-05,2]
[327960295,1716713751400,829.36486409,7.313e-05,2]
[327960296,1716713765293,-1155.6885,0.00010581,2]
[327960297,1716713765319,-475.37,0.00012686,2]
[327960298,1716713765343,-529.39391073,0.00012697,2]
[327960299,1716713765368,-470.32479388,0.00012697,2]
[327960300,1716713765393,-358.5807,0.00012698,2]
[327960301,1716713765417,-796.1588,0.00012699,2]
[327960302,1716713765440,-31461.48329539,0.00012699,2]
[327960303,1716713782557,3754.46544728,7.313e-05,2]
[327960304,1716713798248,-423.84200743,0.00012698,2]
[327960305,1716713798277,-2940.15799257,0.00012699,2]
[327960306,1716713798486,837.26381941,7.313e-05,2]
[327960347,1716714631660,-423.84200743,0.00011691,2]
[327960348,1716714631670,-521.82,0.00011771,2]
[327960349,1716714631680,-45026.16071204,0.00012699,2]
[327960350,1716714631690,-1000.0,0.00012699,2]
[327960351,1716714631701,-274.99835214,0.00012869,2]
[327960352,1716714631710,-171.1815,0.00012899,2]
[327960353,1716714631720,-2398.10789064,0.000129,2]
[327960354,1716714631729,-2500.0,0.000129,2]
[327960355,1716714631739,-2194.28069799,0.000129,2]
[327960356,1716714631749,-5409.44099284,0.000129,2]
[327960357,1716714631758,-323.61546462,0.000129,2]
[327960358,1716714631768,-159.51,0.0001299,2]
[327960359,1716714631777,-15410.04220362,0.00012997,2]
[327960360,1716714631787,-2361.97518554,0.00012998,2]
[327960361,1716714631796,-164.99574182,0.00012998,2]
[327960362,1716714631806,-306.00607341,0.00012998,2]
[327960363,1716714631816,-3118.8,0.00012998,2]
[327960364,1716714631826,-373.73181939,0.00012998,2]
[327960365,1716714631837,-157.22038164,0.00012998,2]
[327960366,1716714631846,-237.20973575,0.00012998,2]
[327960367,1716714631856,-239.68093296,0.00012998,2]
[327960368,1716714631865,-537.53035745,0.00012998,2]
[327960369,1716714631874,-834.93638884,0.00012998,2]
[327960370,1716714631884,-207.5848005,0.00012998,2]
[327960371,1716714631893,-3717.13350806,0.00012998,2]
[327960372,1716714631903,-155.0,0.00012998,2]
[327960373,1716714631913,-240.7284917,0.00012998,2]
[327960374,1716714631923,-192.53745669,0.00012998,2]
[327960375,1716714631932,-181.70620615,0.00012998,2]
[327960376,1716714631942,-1125.12131999,0.00012998,2]
[327960377,1716714631951,-2582.96750816,0.00012998,2]
[327960379,1716714631961,-7307.46141809,0.00012998,2]
[327960381,1716714631971,-3857.71561281,0.00012998,2]
[327960383,1716714631981,-8612.02929872,0.00012998,2]
[327960394,1716714632184,-414.28119384,0.00012998,2]
[327960395,1716714632206,-200.78650338,0.00012998,2]
[327960396,1716714632215,-159.12927082,0.00012998,2]
[327960397,1716714632226,-155.67431801,0.00012998,2]
[327960398,1716714632235,-613.46729982,0.00012998,2]
[327960399,1716714632245,-155.24290461,0.00012998,2]
[327960400,1716714632255,-1244.99730591,0.00012998,2]
[327960401,1716714632264,-182.91,0.00012998,2]
[327960402,1716714632273,-3259.04,0.00012998,2]
[327960403,1716714632283,-150.01,0.00012999,2]
[327960404,1716714632292,-2936.50650373,0.00012999,2]
[327960405,1716714632302,-3289.14283308,0.00012999,2]
[327960406,1716714632311,-778.49,0.00012999,2]
[327960407,1716714632321,-499.99,0.00012999,2]
[327960408,1716714632331,-299.99,0.00012999,2]
[327960409,1716714632341,-231112.42400346,0.00013,2]
[327960410,1716714632353,-243978.81174262,0.00013,2]
[327960411,1716714632362,-399050.23257299,0.00013,2]
[327960412,1716714632374,-22412.57131181,0.00013,2]
[327960413,1716714632400,-732.91429086,0.00013,2]
[327960414,1716714632519,-926.58736628,0.00013,2]
[327960415,1716714632539,-825.99999941,0.00013,2]
[327960416,1716714637889,-17452.26548079,0.00013,2]
[327960417,1716714637901,-381.33465368,0.00013,2]